bitfinex/quotes_SOLUSD_20220307
["timestamp","ask_amount","ask_price","bid_price","bid_amount"]
[1646687079245,0.25,81.171,81.131,36.64934972]
[1646687079445,0.25,81.172,81.131,36.64934972]
[1646687079848,0.25,81.173,81.131,36.64934972]
[1646687080047,40.70270825,81.173,81.131,36.64934972]
[1646687080248,39.03300212,81.173,81.131,36.64934972]
[1646687080548,40.70270825,81.173,81.131,36.64934972]
[1646687080968,0.25,81.173,81.131,36.64934972]
[1646687081150,1.66970613,81.175,81.132,6.0]
[1646687081353,3.27891556,81.198,81.132,6.0]
[1646687081354,1.66970613,81.178,81.141,123.8]
[1646687081548,0.25,81.177,81.142,6.25]
[1646687082748,0.25,81.181,81.142,6.25]
[1646687083952,1.91970613,81.182,81.142,0.25]
[1646687084152,1.91970613,81.182,81.141,6.25]
[1646687084652,1.66970613,81.182,81.151,123.8]
[1646687084953,1.66970613,81.195,81.153,123.8]
[1646687085151,1.66970613,81.203,81.155,123.8]
[1646687085353,1.66970613,81.204,81.157,123.8]
[1646687085655,1.66970613,81.209,81.161,123.8]
[1646687085954,1.66970613,81.211,81.163,123.8]
[1646687086151,1.66970613,81.209,81.165,123.8]
[1646687086353,1.66970613,81.209,81.167,123.8]
[1646687086655,1.66970613,81.214,81.169,123.8]
[1646687086852,1.66970613,81.214,81.171,123.8]
[1646687087055,1.66970613,81.215,81.172,6.25]
[1646687087654,1.66970613,81.216,81.173,38.49054345]
[1646687087860,1.16970613,81.216,81.174,6.25]
[1646687088055,112.2,81.227,81.174,6.25]
[1646687088255,0.25,81.226,81.174,6.25]
[1646687088455,0.25,81.226,81.175,123.8]
[1646687088657,112.2,81.227,81.181,123.8]
[1646687088858,3.27891556,81.243,81.183,123.8]
[1646687089059,3.27891556,81.262,81.185,123.8]
[1646687089260,6.156,81.275,81.201,123.8]
[1646687089261,3.27891556,81.268,81.201,123.8]
[1646687089457,6.156,81.275,81.211,123.8]
[1646687089660,30.66928866,81.274,81.22,156.6946]
[1646687089957,30.66928866,81.274,81.221,6.25]
[1646687091161,30.66928866,81.274,81.23,18.465]
[1646687091458,30.66928866,81.274,81.231,33.89061564]
[1646687091658,6.402,81.273,81.231,33.89061564]
[1646687091864,6.402,81.273,81.232,0.25]
[1646687092260,0.25,81.273,81.232,0.25]
[1646687093662,0.25,81.273,81.213,23.8964]
[1646687093863,0.25,81.273,81.214,0.25]
[1646687094365,5.654,81.272,81.214,0.25]
[1646687094562,0.25,81.271,81.214,0.25]
[1646687094765,0.25,81.271,81.22,18.4672]
[1646687094963,0.25,81.271,81.221,0.25]
[1646687095384,0.25,81.271,81.221,6.25]
[1646687095583,0.25,81.273,81.221,6.25]
[1646687097584,0.25,81.273,81.231,35.55684842]
[1646687097784,0.25,81.287,81.232,6.25]
[1646687097985,0.25,81.288,81.232,6.25]
[1646687098685,33.14999706,81.288,81.232,6.25]
[1646687098887,32.89999706,81.288,81.232,6.25]
[1646687099391,32.39999706,81.288,81.232,6.25]
[1646687099586,32.39999706,81.288,81.232,0.25]
[1646687100188,0.25,81.287,81.232,0.25]
[1646687100589,6.152,81.286,81.232,0.25]
[1646687100792,0.25,81.285,81.232,6.25]
[1646687101590,0.25,81.285,81.233,123.8]
[1646687101791,0.25,81.286,81.24,18.4633]
[1646687102093,0.25,81.287,81.241,6.25]
[1646687102694,0.25,81.287,81.25,18.4612]
[1646687102890,6.152,81.308,81.25,18.4612]
[1646687102891,0.25,81.288,81.251,0.25]
[1646687103091,0.25,81.307,81.251,0.25]
[1646687103290,0.25,81.309,81.251,0.25]
[1646687103693,30.95007384,81.309,81.251,0.25]
[1646687104092,30.95007384,81.309,81.236,0.25]
[1646687104292,13.13818508,81.308,81.236,0.25]
[1646687104493,130.49266216,81.307,81.211,6.0]
[1646687104695,3.27891556,81.302,81.211,6.0]
[1646687104893,123.8,81.3,81.211,6.0]
[1646687105193,127.07891556,81.298,81.211,6.0]
[1646687105393,18.4702,81.28,81.212,29.67025558]
[1646687105592,45.069899,81.279,81.213,6.0]
[1646687105793,45.069899,81.279,81.214,0.25]
[1646687106392,45.069899,81.279,81.213,6.0]
[1646687106994,18.4726,81.27,81.19,14.43]
[1646687107198,6.97282364,81.269,81.188,18.1151]
[1646687107398,123.8,81.268,81.18,14.43]
[1646687107600,127.07891556,81.266,81.16,14.43]
[1646687107798,0.57886609,81.263,81.16,14.43]
[1646687108099,3.27891556,81.256,81.161,31.54076305]
[1646687108302,127.07891556,81.254,81.161,31.54076305]
[1646687108499,123.8,81.252,81.16,14.43]
[1646687108698,123.8,81.25,81.16,14.43]
[1646687108900,13.6825199,81.251,81.131,50.02693175]
[1646687108901,123.8,81.248,81.14,33.127]
[1646687109104,3.27891556,81.245,81.131,23.546]
[1646687109300,123.8,81.229,81.126,100.0]
[1646687109500,123.8,81.227,81.126,118.7274]
[1646687109702,123.8,81.225,81.126,118.7274]
[1646687110000,123.8,81.219,81.111,24.48]
[1646687110200,6.13967034,81.216,81.09,14.43]
[1646687110401,0.62664706,81.212,81.09,14.43]
[1646687110601,0.62664706,81.207,81.1,33.33065866]
[1646687110899,123.8,81.204,81.1,33.33065866]
[1646687111100,123.8,81.199,81.09,32.9275]
[1646687111305,123.8,81.197,81.091,6.0]
[1646687111501,128.8593806,81.195,81.091,6.0]
[1646687111700,123.8,81.189,81.075,18.8074]
[1646687111899,123.8,81.187,81.076,6.0]
[1646687112101,123.8,81.169,81.077,30.96580011]
[1646687112303,123.8,81.167,81.069,18.0891]
[1646687112600,0.62664706,81.164,81.05,14.43]
[1646687112800,123.8,81.162,81.05,14.43]
[1646687113003,0.62664706,81.161,81.05,138.23]
[1646687113202,34.24466772,81.149,81.056,155.39487953]
[1646687113400,0.62664706,81.147,81.056,155.39487953]
[1646687113601,0.25,81.148,81.057,6.0]
[1646687113803,0.87664706,81.148,81.057,6.0]
[1646687114001,0.25,81.148,81.06,138.23]
[1646687114200,6.164,81.147,81.061,6.25]
[1646687114400,0.25,81.146,81.061,6.25]
[1646687114602,6.164,81.145,81.061,6.25]
[1646687114803,0.25,81.144,81.061,6.25]
[1646687115001,6.165,81.143,81.061,6.25]
[1646687115201,0.25,81.142,81.061,6.25]
[1646687115502,18.5032,81.14,81.061,6.0]
[1646687115703,0.17583239,81.138,81.061,6.0]
[1646687115902,0.32999385,81.136,81.042,24.0078]
[1646687116103,0.32999385,81.136,81.018,24.7042]
[1646687116104,0.46660007,81.134,81.02,14.43]
[1646687116304,6.166,81.133,81.02,14.43]
[1646687116604,28.40412003,81.119,81.021,37.95850531]
[1646687116802,0.5097663,81.117,81.021,37.95850531]
[1646687117003,0.5097663,81.115,81.021,37.95850531]
[1646687117201,0.5097663,81.113,81.022,6.0]
[1646687117403,0.5097663,81.111,81.022,6.0]
[1646687117601,18.5139,81.1,81.022,6.0]
[1646687117802,0.5097663,81.098,81.022,6.0]
[1646687118001,6.168,81.097,81.02,14.43]
[1646687118201,0.5097663,81.095,81.0,14.43]
[1646687118403,0.5097663,81.095,80.976,100.0]
[1646687118404,6.168,81.094,80.976,100.0]
[1646687118601,0.5097663,81.093,80.976,18.0977]
[1646687118802,0.5097663,81.089,80.977,28.48655113]
[1646687119002,0.5097663,81.087,80.976,18.0977]
[1646687119304,0.5097663,81.085,80.976,18.0977]
[1646687119504,6.17,81.084,80.977,6.0]
[1646687119702,0.7597663,81.083,80.978,6.17]
[1646687120102,0.7597663,81.083,80.979,33.46307979]
[1646687120103,18.5232,81.07,80.979,33.46307979]
[1646687120302,0.5097663,81.068,80.98,0.25]
[1646687120502,6.171,81.067,80.98,0.25]
[1646687120701,0.5097663,81.065,80.98,0.25]
[1646687120902,0.5097663,81.063,80.98,0.25]
[1646687121102,0.5097663,81.061,80.978,0.25]
[1646687121303,0.5097663,81.059,80.973,6.171]
[1646687121505,0.5097663,81.057,80.971,6.171]
[1646687121803,0.5097663,81.057,80.955,24.1624]
[1646687121804,0.5097663,81.055,80.96,18.0665]
[1646687122004,6.172,81.054,80.961,38.34819322]
[1646687122306,0.5097663,81.052,80.961,38.34819322]
[1646687122506,0.5097663,81.05,80.961,38.34819322]
[1646687122702,0.5097663,81.048,80.962,6.25]
[1646687122903,6.172,81.047,80.962,6.25]
[1646687123105,0.25,81.046,80.962,6.25]
[1646687123302,6.172,81.045,80.962,6.0]
[1646687123505,0.25,81.044,80.962,6.0]
[1646687123703,31.07708847,81.042,80.962,6.0]
[1646687123903,6.422,81.041,80.962,6.0]
[1646687124306,0.17078548,81.04,80.962,6.0]
[1646687124506,6.172,81.039,80.962,6.0]
[1646687124705,0.25,81.038,80.963,0.25]
[1646687124909,6.172,81.037,80.963,0.25]
[1646687125111,0.25,81.036,80.963,0.25]
[1646687125314,6.172,81.035,80.963,0.25]
[1646687125510,0.25,81.034,80.963,0.25]
[1646687125709,6.172,81.033,80.963,0.25]
[1646687125908,0.25,81.032,80.963,0.25]
[1646687127111,0.25,81.04,80.963,0.25]
[1646687127409,6.172,81.039,80.963,0.25]
[1646687127613,0.25,81.038,80.963,0.25]
[1646687127812,6.172,81.037,80.964,6.172]
[1646687128012,0.25,81.036,80.965,6.25]
[1646687128213,6.172,81.035,80.966,6.172]
[1646687128411,0.25,81.034,80.967,6.25]
[1646687128611,6.172,81.033,80.968,6.172]
[1646687128815,0.25,81.032,80.969,6.25]
[1646687129035,6.172,81.031,80.97,6.172]
[1646687129214,0.25,81.03,80.971,6.25]
[1646687129415,6.172,81.033,80.972,6.172]
[1646687129617,6.76,81.034,80.974,38.59404226]
[1646687129815,6.76,81.034,80.976,0.14627849]
[1646687130218,6.76,81.034,80.975,6.25]
[1646687130815,0.25,81.033,80.975,6.25]
[1646687131215,6.76,81.034,80.975,6.25]
[1646687132019,6.76,81.034,80.975,6.0]
[1646687133222,0.25,81.033,80.976,0.25]
[1646687133425,6.76,81.034,80.977,6.172]
[1646687133625,6.76,81.034,80.981,0.14998885]
[1646687133824,6.76,81.034,80.983,0.32691899]
[1646687134023,6.76,81.034,80.985,0.32691899]
[1646687134225,6.76,81.034,80.987,0.32691899]
[1646687134424,6.76,81.034,81.0,14.43]
[1646687134625,6.76,81.034,81.002,0.32691899]
[1646687134823,6.76,81.034,81.003,6.171]
[1646687135023,6.76,81.034,81.004,6.25]
[1646687135223,6.76,81.034,81.005,6.171]
[1646687135425,6.76,81.034,81.006,6.25]
[1646687135622,6.76,81.034,81.01,14.43]
[1646687135823,6.76,81.034,81.011,6.25]
[1646687136324,6.76,81.034,81.012,123.8]
[1646687136542,6.76,81.034,81.014,123.8]
[1646687136742,27.37799284,81.096,81.018,123.8]
[1646687136945,27.37799284,81.096,81.02,156.741]
[1646687137145,6.168,81.095,81.022,123.8]
[1646687137443,6.168,81.109,81.032,198.04]
[1646687137645,6.167,81.15,81.041,123.8]
[1646687137843,6.167,81.15,81.043,123.8]
[1646687138046,6.167,81.15,81.045,123.8]
[1646687138245,28.04743532,81.149,81.07,18.4975]
[1646687138444,6.164,81.148,81.071,46.63721496]
[1646687139046,0.25,81.147,81.071,46.63721496]
[1646687139246,6.164,81.146,81.08,18.4977]
[1646687139547,28.04743532,81.149,81.09,138.23]
[1646687139746,28.04743532,81.149,81.091,50.22458031]
[1646687140649,28.04743532,81.149,81.1,18.4933]
[1646687140848,28.04743532,81.149,81.101,6.25]
[1646687141047,28.04743532,81.149,81.101,0.25]
[1646687141249,0.25,81.148,81.07,18.906]
[1646687141450,0.25,81.148,81.07,14.43]
[1646687141847,6.164,81.147,81.07,14.43]
[1646687142149,0.25,81.146,81.071,29.55355724]
[1646687142347,6.164,81.145,81.071,29.55355724]
[1646687142547,0.25,81.144,81.072,6.0]
[1646687142849,6.164,81.143,81.07,14.43]
[1646687143047,0.25,81.142,81.07,14.43]
[1646687143250,6.164,81.141,81.07,14.43]
[1646687143547,0.25,81.14,81.07,14.43]
[1646687143750,0.25,81.142,81.07,14.43]
[1646687144147,0.25,81.142,81.071,0.25]
[1646687144348,0.25,81.142,81.072,6.164]
[1646687144548,0.25,81.148,81.073,0.25]
[1646687144752,0.25,81.148,81.074,129.964]
[1646687144950,0.25,81.148,81.076,123.8]
[1646687145151,0.25,81.148,81.08,156.7291]
[1646687145354,0.25,81.148,81.081,12.414]
[1646687146453,0.25,81.148,81.09,18.4949]
[1646687146653,0.25,81.148,81.091,49.40814204]
[1646687147257,0.25,81.148,81.092,123.8]
[1646687147458,6.163,81.179,81.1,142.2938]
[1646687147658,0.25,81.178,81.101,12.412]
[1646687147858,6.162,81.177,81.101,12.412]
[1646687148061,0.25,81.176,81.101,12.412]
[1646687148456,35.81573628,81.176,81.101,12.412]
[1646687149759,0.25,81.175,81.101,12.412]
[1646687150458,6.162,81.174,81.101,0.25]
[1646687150658,0.25,81.173,81.101,0.25]
[1646687150861,6.162,81.172,81.101,0.25]
[1646687151059,0.25,81.171,81.1,14.43]
[1646687151260,0.25,81.171,81.092,6.162]
[1646687151261,123.8,81.169,81.092,6.162]
[1646687151462,0.40432387,81.166,81.081,6.162]
[1646687151661,0.40432387,81.164,81.081,6.162]
[1646687151863,0.65432387,81.164,81.081,6.162]
[1646687152266,0.40432387,81.159,81.082,6.25]
[1646687152461,0.40432387,81.157,81.082,6.25]
[1646687152662,6.163,81.156,81.082,0.25]
[1646687152863,0.25,81.155,81.082,0.25]
[1646687153063,6.163,81.154,81.082,0.25]
[1646687153264,0.25,81.153,81.082,0.25]
[1646687153466,6.163,81.152,81.082,0.25]
[1646687153663,0.25,81.151,81.082,0.25]
[1646687154763,0.25,81.161,81.082,0.25]
[1646687154964,6.163,81.16,81.082,0.25]
[1646687155263,0.25,81.159,81.082,0.25]
[1646687155465,6.163,81.158,81.082,0.25]
[1646687155665,0.25,81.157,81.082,0.25]
[1646687155865,6.163,81.156,81.082,0.25]
[1646687156068,0.25,81.155,81.082,0.25]
[1646687156365,6.163,81.154,81.082,0.25]
[1646687156564,0.25,81.153,81.082,0.25]
[1646687156766,6.163,81.152,81.09,18.4972]
[1646687156966,0.25,81.151,81.092,33.97072035]
[1646687157166,37.93967637,81.149,81.093,0.25]
[1646687157366,0.25,81.148,81.093,0.25]
[1646687159969,0.25,81.148,81.093,6.25]
[1646687160371,0.25,81.148,81.093,0.25]
[1646687160574,6.45395472,81.147,81.081,0.25]
[1646687160774,0.25,81.146,81.072,0.25]
[1646687160974,0.29095472,81.145,81.072,0.25]
[1646687161175,0.29095472,81.145,81.07,0.25]
[1646687161378,0.25,81.146,81.07,33.87664555]
[1646687161573,18.5025,81.14,81.06,18.5025]
[1646687161773,0.40109605,81.138,81.052,23.2638]
[1646687161975,6.165,81.137,81.04,47.91795397]
[1646687162172,0.44783258,81.135,81.03,14.43]
[1646687162375,0.60994694,81.132,81.028,15.32965397]
[1646687162575,0.60994694,81.127,81.023,36.67060944]
[1646687162797,0.60994694,81.118,80.998,15.32965397]
[1646687162999,123.8,81.116,81.015,6.0]
[1646687163200,123.8,81.114,81.0,18.5385]
[1646687163398,123.8,81.109,81.0,18.5385]
[1646687163599,124.43031661,81.107,81.0,18.5385]
[1646687163803,123.8,81.089,81.001,36.79513748]
[1646687164001,123.8,81.085,81.001,36.79513748]
[1646687164200,0.63031661,81.082,81.002,0.25]
[1646687164402,0.63031661,81.08,81.002,0.25]
[1646687164601,6.168,81.079,81.002,0.25]
[1646687164902,0.63031661,81.077,81.002,0.25]
[1646687165902,0.63031661,81.08,81.002,0.25]
[1646687166101,0.88031661,81.08,81.002,0.25]
[1646687166306,0.63031661,81.078,81.002,0.25]
[1646687166504,0.63031661,81.076,81.002,0.25]
[1646687166703,0.88031661,81.076,81.002,6.25]
[1646687167104,18.5181,81.07,81.002,6.25]
[1646687167403,33.59551659,81.069,81.002,6.25]
[1646687168104,0.63031661,81.068,81.002,6.25]
[1646687168402,6.17,81.067,81.002,0.25]
[1646687168604,0.25,81.066,81.002,0.25]
[1646687168806,6.17,81.065,81.002,0.25]
[1646687169004,0.42570831,81.064,81.002,0.25]
[1646687169304,6.17,81.063,81.002,0.25]
[1646687169505,0.21274939,81.061,81.002,0.25]
[1646687169705,0.21274939,81.059,81.002,0.25]
[1646687169905,0.46274939,81.059,81.002,0.25]
[1646687170104,0.21274939,81.057,81.002,0.25]
[1646687170304,0.25,81.057,81.002,0.25]
[1646687170807,0.25,81.057,81.001,36.79513748]
[1646687171205,0.4181537,81.058,81.001,36.79513748]
[1646687171409,6.17,81.057,80.99,18.5209]
[1646687171605,0.45760154,81.056,80.99,18.5209]
[1646687171806,6.171,81.055,80.99,18.5209]
[1646687172006,18.5227,81.05,80.99,18.5209]
[1646687172207,0.55234507,81.049,80.991,0.25]
[1646687172407,28.47953763,81.049,80.991,0.25]
[1646687172606,28.17719256,81.049,80.991,0.25]
[1646687173610,123.8,81.039,80.95,14.43]
[1646687173808,5.16362418,81.038,80.911,18.3102]
[1646687174012,4.7421065,81.028,80.91,14.43]
[1646687174210,4.96859681,81.018,80.886,71.204]
[1646687174408,29.37507503,81.016,80.887,38.60248725]
[1646687174609,18.5438,80.98,80.888,8.81298645]
[1646687174808,0.65578344,80.978,80.888,8.81298645]
[1646687175308,0.65578344,80.978,80.889,0.25]
[1646687175508,0.65578344,80.978,80.89,6.177]
[1646687175707,6.83178344,80.978,80.888,6.176]
[1646687175909,0.25,80.977,80.888,6.176]
[1646687176108,6.83178344,80.976,80.888,6.176]
[1646687176310,0.25,80.975,80.888,6.176]
[1646687176511,0.65578344,80.974,80.888,6.176]
[1646687176707,0.65578344,80.974,80.889,0.25]
[1646687176908,3.4919187,80.974,80.89,6.178]
[1646687177108,3.08613526,80.973,80.891,0.25]
[1646687177308,18.5433,80.97,80.892,6.178]
[1646687177509,0.25,80.969,80.893,6.25]
[1646687177708,0.25,80.969,80.894,6.178]
[1646687177908,0.25,80.969,80.895,6.25]
[1646687178111,0.25,80.969,80.896,6.178]
[1646687178309,0.25,80.969,80.897,6.25]
[1646687178510,0.20376214,80.996,80.9,18.5392]
[1646687178716,14.43,81.02,80.901,44.11076836]
[1646687179112,14.43,81.02,80.902,38.40860841]
[1646687179310,14.43,81.02,80.903,6.25]
[1646687179509,14.43,81.02,80.903,20.85663551]
[1646687179710,0.25,80.998,80.903,20.85663551]
[1646687179911,6.176,80.997,80.904,14.60663551]
[1646687180111,0.25,80.996,80.92,18.5305]
[1646687180312,6.176,80.995,80.921,39.39060519]
[1646687180511,0.25,80.994,80.921,39.39060519]
[1646687180711,6.176,80.993,80.921,39.39060519]
[1646687180911,0.25,80.992,80.921,39.39060519]
[1646687181111,6.176,80.991,80.921,39.39060519]
[1646687181312,0.25,80.99,80.921,39.39060519]
[1646687181515,6.176,80.989,80.921,39.39060519]
[1646687181714,0.25,80.988,80.921,39.39060519]
[1646687181912,6.176,80.987,80.921,39.39060519]
[1646687182111,0.25,80.986,80.921,39.39060519]
[1646687182312,6.176,80.985,80.921,39.39060519]
[1646687182514,0.25,80.986,80.921,39.39060519]
[1646687182515,0.25,80.984,80.93,18.5328]
[1646687182715,0.25,80.986,80.921,58.09390519]
[1646687182716,6.176,80.995,80.931,12.426]
[1646687182915,6.175,81.026,80.931,12.426]
[1646687183717,18.5314,81.02,80.94,18.5286]
[1646687183918,18.5314,81.02,80.942,28.80150499]
[1646687183919,31.10095897,81.018,80.942,28.80150499]
[1646687184119,6.174,81.017,80.943,6.25]
[1646687184318,0.25,81.016,80.943,6.25]
[1646687184517,6.174,81.015,80.943,6.25]
[1646687184717,0.25,81.014,80.943,6.25]
[1646687184917,6.174,81.013,80.943,6.25]
[1646687185117,0.25,81.012,80.943,6.25]
[1646687185317,6.174,81.011,80.943,6.25]
[1646687185518,18.7838,81.01,80.943,6.25]
[1646687185722,6.174,81.009,80.943,6.25]
[1646687185922,0.25,81.008,80.943,6.25]
[1646687187320,0.25,81.009,80.943,6.25]
[1646687188821,6.174,81.008,80.943,6.25]
[1646687189022,0.25,81.007,80.943,6.25]
[1646687189221,27.70109788,81.005,80.943,6.25]
[1646687189426,6.424,81.004,80.943,6.25]
[1646687190225,0.25,81.004,80.943,6.25]
[1646687190821,9.36,81.004,80.943,6.25]
[1646687191223,9.36,81.004,80.943,0.25]
[1646687191523,0.3306088,81.002,80.924,6.25]
[1646687191722,6.175,81.001,80.924,0.25]
[1646687191927,0.61852189,81.0,80.924,0.25]
[1646687192123,6.175,80.999,80.924,35.35420661]
[1646687192323,0.61852189,80.998,80.924,35.35420661]
[1646687192522,6.175,80.997,80.924,35.35420661]
[1646687192724,0.36852189,80.995,80.924,35.35420661]
[1646687192928,6.175,80.994,80.924,35.35420661]
[1646687193127,0.25,80.993,80.924,35.35420661]
[1646687193328,6.176,80.992,80.924,35.35420661]
[1646687193530,37.88083277,80.991,80.924,35.35420661]
[1646687193730,6.54452189,80.99,80.924,35.35420661]
[1646687193929,0.25,80.989,80.924,35.35420661]
[1646687194128,6.176,80.988,80.924,35.35420661]
[1646687194330,0.25,80.987,80.924,35.35420661]
[1646687195131,0.25,80.987,80.924,0.25]
[1646687195332,123.8,80.985,80.923,6.174]
[1646687195530,0.25,80.989,80.923,6.174]
[1646687195531,0.45066361,80.982,80.923,6.174]
[1646687195731,0.70066361,80.982,80.923,6.174]
[1646687195931,0.70066361,80.982,80.88,60.1189]
[1646687196131,123.8,80.977,80.869,33.2271878]
[1646687196330,43.40093059,80.978,80.858,17.6259729]
[1646687196331,0.60406385,80.974,80.858,17.6259729]
[1646687196549,0.60406385,80.958,80.858,17.6259729]
[1646687196752,0.60406385,80.955,80.856,100.0]
[1646687197054,123.8,80.949,80.856,100.0]
[1646687197250,123.8,80.929,80.841,75.26581583]
[1646687197449,123.8,80.927,80.841,47.1358]
[1646687197649,123.8,80.925,80.841,47.1358]
[1646687197849,123.8,80.923,80.84,18.5539]
[1646687198052,0.85406385,80.922,80.84,18.5539]
[1646687198250,6.181,80.921,80.84,18.5539]
[1646687198449,123.8,80.919,80.83,41.6978]
[1646687198656,123.8,80.917,80.83,41.6978]
[1646687198850,7.03606385,80.916,80.83,41.6978]
[1646687199049,37.85548378,80.915,80.83,41.6978]
[1646687199254,7.03606385,80.914,80.83,41.6978]
[1646687199654,7.03606385,80.914,80.831,0.25]
[1646687199851,18.5584,80.9,80.831,6.25]
[1646687200152,31.15674944,80.899,80.831,6.25]
[1646687200951,0.2011416,80.898,80.831,0.25]
[1646687201254,18.5598,80.89,80.831,0.25]
[1646687201452,0.25,80.889,80.819,18.2164]
[1646687201653,0.2164502,80.888,80.819,18.2164]
[1646687202054,0.25,80.889,80.82,32.65600962]
[1646687202254,0.25,80.889,80.82,51.21660962]
[1646687202656,0.25,80.896,80.821,6.0]
[1646687202857,6.183,80.895,80.821,6.0]
[1646687203057,0.25,80.894,80.821,6.0]
[1646687203356,0.25,80.894,80.83,18.5581]
[1646687203559,0.25,80.894,80.831,6.0]
[1646687204161,0.25,80.897,80.832,0.25]
[1646687204359,6.183,80.896,80.841,31.68553531]
[1646687204561,0.25,80.895,80.842,0.25]
[1646687204763,0.25,80.897,80.842,0.25]
[1646687205761,0.25,80.898,80.842,0.25]
[1646687206762,18.5597,80.89,80.832,6.182]
[1646687206964,0.25,80.889,80.833,6.25]
[1646687207162,0.25,80.889,80.834,6.183]
[1646687207364,0.25,80.889,80.835,6.0]
[1646687207663,0.25,80.889,80.836,41.40502199]
[1646687207860,0.25,80.889,80.837,6.0]
[1646687208061,0.25,80.897,80.837,6.0]
[1646687208265,6.182,80.896,80.837,6.0]
[1646687208468,0.25,80.895,80.837,6.0]
[1646687209063,6.183,80.898,80.84,18.5562]
[1646687209264,6.182,80.921,80.841,6.432]
[1646687209464,59.9891565,80.934,80.842,6.0]
[1646687209465,66.1711565,80.934,80.842,6.0]
[1646687209664,1.64831418,80.95,80.842,6.0]
[1646687209665,6.182,80.939,80.844,0.14256413]
[1646687209870,123.8,80.945,80.846,0.14256413]
[1646687210066,53.6479,80.946,80.85,18.5509]
[1646687210067,123.8,80.939,80.85,18.5509]
[1646687210265,6.18,80.938,80.851,6.43]
[1646687210465,32.1790783,80.937,80.851,0.25]
[1646687210664,129.98,80.936,80.851,0.25]
[1646687211067,18.5539,80.92,80.852,6.18]
[1646687211267,27.40280656,80.919,80.853,30.92467495]
[1646687211467,27.40280656,80.919,80.854,6.181]
[1646687211667,27.40280656,80.919,80.855,0.25]
[1646687211968,33.58380656,80.919,80.856,6.181]
[1646687212166,33.58380656,80.919,80.86,18.5511]
[1646687212370,33.58380656,80.919,80.861,6.431]
[1646687212969,33.58380656,80.919,80.861,0.25]
[1646687213267,0.25,80.918,80.861,0.25]
[1646687213469,0.25,80.918,80.862,6.181]
[1646687213669,0.25,80.918,80.863,0.25]
[1646687214876,0.25,80.918,80.864,6.181]
[1646687215073,6.181,80.929,80.865,0.25]
[1646687215273,4.97018677,80.998,80.866,6.18]
[1646687215274,6.18,80.952,80.866,6.18]
[1646687215474,6.18,80.954,80.87,138.23]
[1646687215773,6.179,80.97,80.872,123.8]
[1646687215973,6.178,80.972,80.874,123.8]
[1646687216174,34.62775875,80.971,80.891,36.50131012]
[1646687216374,6.178,80.97,80.892,6.428]
[1646687216579,24.7191,80.97,80.892,6.428]
[1646687216773,18.5411,80.97,80.892,9.26413526]